bitfinex/quotes_SOLUSD_20241205
["timestamp","ask_amount","ask_price","bid_price","bid_amount"]
[1733423073103,18.24761115,238.24,238.22,0.2688089]
[1733423073285,18.24761115,238.26,238.22,0.2688089]
[1733423073658,18.24761115,238.24,238.22,0.2688089]
[1733423074382,0.6273631,238.23,238.22,0.2688089]
[1733423075262,18.87497425,238.23,238.22,0.2688089]
[1733423075780,18.24761115,238.23,238.22,0.68779358]
[1733423075973,18.24761115,238.25,238.22,0.68779358]
[1733423076185,18.24761115,238.23,238.22,0.68779358]
[1733423076783,18.24761115,238.23,238.22,0.2688089]
[1733423076992,18.87497425,238.23,238.22,0.2688089]
[1733423079371,18.87497425,238.23,238.22,8.9e-06]
[1733423080668,31.4835,238.22,238.06,0.4979971]
[1733423080886,18.24761115,238.11,238.06,0.4979971]
[1733423081498,18.24761115,238.07,238.06,0.4979971]
[1733423081705,18.24761115,238.07,237.92,2.2235]
[1733423081706,18.24761115,238.07,237.92,2.85363865]
[1733423081877,18.24761115,238.08,237.92,2.2235]
[1733423081878,18.24761115,237.97,237.92,2.2235]
[1733423082073,0.6273631,238.06,237.92,2.2235]
[1733423082274,18.24761115,238.01,237.92,2.2235]
[1733423082570,0.6273631,238.0,237.92,2.2235]
[1733423082888,18.24761115,238.07,237.92,2.2235]
[1733423083095,0.6273631,238.06,237.92,2.2235]
[1733423083262,18.24761115,238.02,237.93,0.63029548]
[1733423083468,0.6273631,238.06,237.93,0.63029548]
[1733423083768,0.6273631,238.09,237.93,0.63029548]
[1733423084196,0.6273631,238.14,237.94,23.776884]
[1733423084501,0.6273631,238.14,237.96,23.776884]
[1733423084802,0.6273631,238.16,237.98,23.776884]
[1733423084974,18.24761115,238.27,238.06,23.776884]
[1733423085173,18.24761115,238.25,238.08,23.776884]
[1733423085497,11.1209631,238.24,238.08,23.776884]
[1733423085670,0.6273631,238.24,238.11,8.6785]
[1733423085865,0.6273631,238.26,238.13,23.776884]
[1733423086066,18.24761115,238.23,238.12,23.776884]
[1733423086290,18.24761115,238.19,238.11,8.6785]
[1733423086493,18.24761115,238.13,238.02,6.4904]
[1733423086692,0.6273631,238.12,238.02,6.4904]
[1733423087005,18.24761115,238.11,238.02,6.4904]
[1733423087170,0.6273631,238.1,237.99,2.1104]
[1733423088704,18.24761115,238.09,237.99,2.1104]
[1733423088896,0.6273631,238.08,237.99,2.1104]
[1733423089802,0.6273631,238.1,237.99,2.1104]
[1733423089997,18.24761115,238.09,237.99,2.1104]
[1733423090196,0.6273631,238.08,237.99,2.1104]
[1733423091186,11.1242631,238.17,238.0,23.776884]
[1733423091387,0.6273631,238.17,238.02,23.776884]
[1733423091590,0.6273631,238.17,238.04,23.776884]
[1733423092484,0.6273631,238.17,238.06,23.776884]
[1733423092681,18.24761115,238.26,238.08,23.776884]
[1733423092897,0.29607635,238.25,238.1,23.776884]
[1733423093084,0.29607635,238.25,238.13,6.0322]
[1733423093403,18.24761115,238.28,238.14,23.776884]
[1733423093707,0.29607635,238.27,238.14,23.776884]
[1733423094395,0.29607635,238.27,238.15,2.2341]
[1733423094598,18.5436875,238.31,238.16,23.776884]
[1733423094924,18.24761115,238.27,238.16,23.776884]
[1733423095208,0.29607635,238.26,238.16,23.776884]
[1733423095380,0.29607635,238.28,238.16,23.776884]
[1733423095580,0.8084486,238.27,238.16,23.776884]
[1733423095781,0.29607635,238.26,238.16,23.776884]
[1733423096000,18.24761115,238.21,238.15,2.2341]
[1733423096198,1.10452495,238.2,238.15,2.2341]
[1733423096492,1.10452495,238.2,238.09,2.2296]
[1733423096678,0.8084486,238.2,238.09,2.2296]
[1733423096878,0.8084486,238.2,238.1,0.62976683]
[1733423097077,0.8084486,238.2,238.09,2.2296]
[1733423097510,0.8084486,238.2,238.1,23.776884]
[1733423100121,18.24761115,238.19,238.09,2.2296]
[1733423100282,1.10452495,238.18,238.09,2.2296]
[1733423100482,18.24761115,238.17,238.09,2.2296]
[1733423100819,1.10452495,238.16,238.09,2.2296]
[1733423101509,1.10452495,238.16,238.04,6.3508]
[1733423101707,28.74511115,238.15,238.04,6.3508]
[1733423102018,1.10452495,238.14,238.04,6.3508]
[1733423102319,18.24761115,238.13,238.04,6.3508]
[1733423102487,1.10452495,238.12,238.04,6.3508]
[1733423102690,0.52190597,238.12,238.04,6.3508]
[1733423103013,0.52190597,238.12,238.05,23.776884]
[1733423103516,0.52190597,238.12,238.05,24.40678908]
[1733423104212,0.52190597,238.12,238.05,23.776884]
[1733423105209,0.52190597,238.12,238.04,1.8773]
[1733423105705,0.52190597,238.12,238.05,0.62998426]
[1733423106079,0.52190597,238.12,238.04,1.8773]
[1733423106985,0.52190597,238.12,238.0,2.1032]
[1733423107414,18.24761115,238.11,238.0,2.1032]
[1733423107610,18.24761115,238.09,238.0,2.1032]
[1733423108488,18.24761115,238.03,237.85,2.1367]
[1733423108688,18.24761115,238.03,237.86,0.63036578]
[1733423110014,18.24761115,238.07,237.86,20.63036578]
[1733423110196,18.24761115,238.07,237.86,0.63036578]
[1733423110585,18.24761115,238.03,237.85,2.1367]
[1733423110795,18.24761115,237.98,237.85,2.1367]
[1733423111197,18.24761115,238.0,237.85,2.1367]
[1733423111590,18.24761115,238.02,237.85,2.1367]
[1733423111814,18.24761115,238.02,237.85,2.76705008]
[1733423112716,18.76951712,238.1,237.89,20.0]
[1733423112894,18.76951712,238.1,237.9,20.63008735]
[1733423113311,18.76951712,238.1,237.9,27.98598735]
[1733423113489,16.8545,238.18,237.9,27.98598735]
[1733423113691,18.24761115,238.11,237.9,27.98598735]
[1733423113891,18.24761115,238.11,237.91,2.0738]
[1733423114206,18.24761115,238.11,237.92,0.63004136]
[1733423115211,18.24761115,238.11,237.93,7.3551]
[1733423115915,18.24761115,238.13,237.93,7.3551]
[1733423116112,18.24761115,238.15,237.96,20.0]
[1733423116310,18.24761115,238.17,238.01,20.0]
[1733423116501,18.24761115,238.13,237.98,6.3037]
[1733423117621,18.24761115,238.11,237.98,6.3037]
[1733423118195,18.24761115,238.09,237.98,6.3037]
[1733423118492,18.24761115,238.07,237.98,6.3037]
[1733423118915,18.24761115,238.07,237.87,0.63009648]
[1733423119093,10.4983,238.14,237.89,6.1487]
[1733423119094,18.24761115,238.03,237.89,6.1487]
[1733423119418,18.24761115,238.01,237.89,6.1487]
[1733423119617,18.24761115,237.97,237.83,6.3381]
[1733423120531,18.24761115,238.0,237.84,0.6304966]
[1733423120818,18.24761115,238.04,237.84,0.6304966]
[1733423120995,18.24761115,238.06,237.84,0.6304966]
[1733423121407,18.24761115,238.06,237.89,7.3561]
[1733423121604,18.24761115,238.1,237.93,6.0947]
[1733423122129,18.24761115,238.08,237.93,6.0947]
[1733423122813,18.24761115,238.06,237.93,6.0947]
[1733423124612,18.24761115,237.95,237.73,16.8083]
[1733423124823,18.24761115,238.0,237.81,16.33556279]
[1733423124996,18.24761115,238.02,237.81,16.33556279]
[1733423125396,18.24761115,238.0,237.81,16.33556279]
[1733423126401,18.24761115,238.02,237.84,27.3576]
[1733423126607,18.24761115,238.04,237.85,0.63036055]
[1733423128022,18.24761115,237.86,237.68,0.63034424]
[1733423128320,18.24761115,237.86,237.7,6.6477]
[1733423128508,18.24761115,237.83,237.71,0.6307465]
[1733423128710,18.24761115,237.9,237.71,7.9924465]
[1733423128905,18.24761115,237.92,237.75,7.3606]
[1733423129104,18.24761115,237.9,237.81,2.0924]
[1733423131333,18.24761115,237.88,237.81,2.0924]
[1733423131708,18.24761115,237.88,237.73,2.1781]
[1733423132301,18.24761115,237.86,237.73,2.1781]
[1733423132503,18.24761115,237.84,237.73,2.1781]
[1733423132813,18.24761115,237.86,237.73,2.1781]
[1733423133155,18.24761115,237.88,237.8,0.4626093]
[1733423134727,18.24761115,237.9,237.8,0.4626093]
[1733423135640,18.24761115,237.92,237.8,0.4626093]
[1733423136714,18.24761115,237.94,237.8,1.09318316]
[1733423137308,18.24761115,237.9,237.8,0.4626093]
[1733423138006,18.24761115,237.92,237.8,0.4626093]
[1733423138531,18.24761115,237.96,237.8,1.09311214]
[1733423140703,18.24761115,238.03,237.81,15.8696]
[1733423141009,18.24761115,238.03,237.84,20.0]
[1733423141320,18.24761115,238.01,237.85,0.63032352]
[1733423141833,18.24761115,238.03,237.85,0.63032352]
[1733423142623,18.24761115,238.03,237.86,7.3572]
[1733423143501,18.24761115,238.07,237.88,2.1997]
[1733423143734,18.24761115,238.07,237.89,0.63019027]
[1733423144108,18.24761115,238.05,237.89,0.63019027]
[1733423144301,18.24761115,238.05,237.88,2.1997]
[1733423145017,18.24761115,238.05,237.89,7.3563]
[1733423145325,18.24761115,238.03,237.89,7.3563]
[1733423146730,18.24761115,238.05,237.89,7.3563]
[1733423147112,10.4991,238.12,237.88,2.1997]
[1733423147113,18.24761115,238.07,237.91,7.3557]
[1733423147312,18.24761115,237.99,237.9,6.0126]
[1733423148527,18.24761115,238.01,237.9,6.0126]
[1733423150318,18.24761115,238.01,237.9,5.5126]
[1733423151133,18.24761115,238.06,237.91,7.3557]
[1733423152017,18.24761115,238.07,237.91,7.3557]
[1733423153320,18.24761115,238.04,237.91,7.3557]
[1733423153921,18.24761115,238.05,237.91,7.3557]
[1733423154131,18.24761115,238.09,237.92,0.63022994]
[1733423154339,18.24761115,238.08,237.91,7.3557]
[1733423154634,18.24761115,238.07,237.91,7.3557]
[1733423155219,18.24761115,238.06,237.91,7.3557]
[1733423155422,18.24761115,238.07,237.91,7.3557]
[1733423155829,18.24761115,238.09,237.91,7.98586364]
[1733423156440,18.24761115,238.12,237.94,20.0]
[1733423157036,18.24761115,238.12,237.95,2.2856]
[1733423158322,18.24761115,238.08,237.95,9.6398]
[1733423158942,18.24761115,238.1,237.95,9.6398]
[1733423160141,18.24761115,238.12,237.96,0.63007129]
[1733423160336,18.24761115,238.14,237.96,0.63007129]
[1733423160825,18.24761115,238.14,237.97,6.4688]
[1733423161324,18.24761115,238.14,237.98,7.3535]
[1733423161719,18.24761115,238.15,237.98,7.3535]
[1733423161918,10.4965,238.18,237.98,7.3535]
[1733423161919,18.24761115,238.14,237.98,7.3535]
[1733423163051,18.24761115,238.2,238.01,2.1232]
[1733423163234,18.24761115,238.23,238.03,6.1768]
[1733423163552,18.24761115,238.23,238.04,2.89294225]
[1733423164122,24.90791115,238.32,238.04,2.89294225]
[1733423164123,10.4911,238.3,238.04,2.89294225]
[1733423164327,18.24761115,238.26,238.06,20.0]
[1733423164543,18.24761115,238.26,238.08,2.3134]
[1733423164761,18.24761115,238.24,238.09,0.62968446]
[1733423164936,18.24761115,238.22,238.08,2.3134]
[1733423165249,18.24761115,238.21,238.08,2.3134]
[1733423165622,18.24761115,238.22,238.08,2.3134]
[1733423165820,18.24761115,238.23,238.08,2.3134]
[1733423166019,18.24761115,238.25,238.08,2.94318932]
[1733423166451,18.24761115,238.23,238.09,7.3501]
[1733423166648,18.24761115,238.22,238.08,2.3134]
[1733423167153,18.24761115,238.24,238.09,6.0965]
[1733423167451,18.24761115,238.22,238.09,6.0965]
[1733423168439,18.24761115,238.22,238.1,23.776884]
[1733423170752,18.24761115,238.25,238.1,24.40665125]
[1733423171133,10.4905,238.31,238.11,7.3495]
[1733423171336,18.24761115,238.3,238.13,2.1511]
[1733423171528,18.24761115,238.3,238.14,24.40644494]
[1733423171735,18.24761115,238.29,238.14,24.40644494]
[1733423171958,18.24761115,238.28,238.14,24.40644494]
[1733423172140,18.24761115,238.29,238.14,24.40644494]
[1733423172328,18.24761115,238.31,238.14,24.40644494]
[1733423172529,18.24761115,238.32,238.15,7.3483]
[1733423172762,18.24761115,238.32,238.16,24.40638493]
[1733423173326,18.24761115,238.31,238.16,24.40638493]
[1733423173660,18.24761115,238.31,238.18,23.776884]
[1733423174036,18.24761115,238.32,238.18,23.776884]
[1733423174355,18.24761115,238.35,238.2,26.040084]
[1733423174563,18.24761115,238.36,238.22,23.776884]
[1733423174769,18.24761115,238.38,238.22,23.776884]
[1733423175069,18.24761115,238.39,238.24,23.776884]
[1733423175242,18.24761115,238.37,238.24,23.776884]
[1733423175861,18.24761115,238.33,238.21,23.776884]
[1733423176042,18.24761115,238.3,238.2,2.2632]
[1733423176657,18.24761115,238.32,238.2,2.2632]
[1733423176869,18.24761115,238.34,238.2,2.2632]
[1733423177373,18.24761115,238.32,238.21,23.776884]
[1733423177571,10.4864,238.41,238.21,31.123284]
[1733423177777,18.24761115,238.37,238.21,31.123284]
[1733423178075,18.24761115,238.36,238.21,31.123284]
[1733423178280,18.24761115,238.37,238.21,31.123284]
[1733423178468,18.24761115,238.39,238.23,23.776884]
[1733423179467,18.24761115,238.39,238.25,23.776884]
[1733423179766,18.24761115,238.38,238.25,23.776884]
[1733423180358,18.24761115,238.39,238.25,23.776884]
[1733423180847,18.24761115,238.41,238.25,23.776884]
[1733423181048,18.24761115,238.38,238.25,23.776884]
[1733423181760,18.24761115,238.35,238.2,29.6099]
[1733423183071,18.24761115,238.35,238.21,23.776884]
[1733423183265,10.4863,238.41,238.21,23.776884]
[1733423183266,18.24761115,238.36,238.21,23.776884]
[1733423184271,18.24761115,238.35,238.21,23.776884]
[1733423184468,18.24761115,238.31,238.2,2.2632]
[1733423185662,18.24761115,238.31,238.21,23.776884]
[1733423186972,18.24761115,238.34,238.21,23.776884]
[1733423187274,18.24761115,238.38,238.21,31.123184]
[1733423187571,18.24761115,238.37,238.21,31.123184]
[1733423187774,18.24761115,238.36,238.21,31.123184]
[1733423188070,18.24761115,238.38,238.21,31.123184]
[1733423188458,18.24761115,238.37,238.21,31.123184]
[1733423189172,18.24761115,238.36,238.21,31.123184]
[1733423190150,18.24761115,238.37,238.21,31.123184]
[1733423190884,18.24761115,238.44,238.23,23.776884]
[1733423190885,18.24761115,238.39,238.23,23.776884]
[1733423191670,18.24761115,238.39,238.24,0.62931488]
[1733423191876,18.24761115,238.39,238.25,31.121784]
[1733423192184,11.39771305,238.38,238.25,31.121784]
[1733423192554,11.39771305,238.36,238.25,31.121784]
[1733423193196,11.39771305,238.37,238.25,31.121784]
[1733423193776,11.39771305,238.38,238.25,31.121784]
[1733423195183,11.39771305,238.37,238.25,31.121784]
[1733423195382,11.39771305,238.38,238.25,31.121784]
[1733423195580,11.39771305,238.43,238.27,23.776884]
[1733423196154,11.39771305,238.44,238.27,23.776884]
[1733423196454,10.4834,238.48,238.27,23.776884]
[1733423196455,11.39771305,238.43,238.27,23.776884]
[1733423196880,11.39771305,238.4,238.27,23.776884]
[1733423197878,11.39771305,238.38,238.27,23.776884]
[1733423198266,11.39771305,238.39,238.27,23.776884]
[1733423198473,11.39771305,238.43,238.27,23.776884]
[1733423198681,11.39771305,238.42,238.29,23.776884]
[1733423199654,11.39771305,238.43,238.29,23.776884]
[1733423199859,11.39771305,238.41,238.29,23.776884]
[1733423200182,11.39771305,238.42,238.29,23.776884]
[1733423201977,11.39771305,238.41,238.29,23.776884]
[1733423202162,11.39771305,238.4,238.29,23.776884]
[1733423204581,11.39771305,238.41,238.29,23.776884]
[1733423204768,11.39771305,238.42,238.29,23.776884]
[1733423205385,11.39771305,238.41,238.29,23.776884]
[1733423206765,11.39771305,238.39,238.29,23.776884]
[1733423207177,11.39771305,238.4,238.29,23.776884]
[1733423208787,11.39771305,238.4,238.26,8.1698]
[1733423208788,11.39771305,238.36,238.26,8.1698]
[1733423208994,11.39771305,238.35,238.26,8.1698]
[1733423209371,11.39771305,238.36,238.26,8.1698]
[1733423209965,11.39771305,238.35,238.27,23.776884]
[1733423210176,11.39771305,238.36,238.27,23.776884]
[1733423210473,11.39771305,238.37,238.27,23.776884]
[1733423212797,11.39771305,238.36,238.27,23.776884]
[1733423212991,11.39771305,238.37,238.27,23.776884]
[1733423213363,20.9689,238.45,238.27,23.776884]
[1733423213364,11.39771305,238.41,238.27,24.40626778]
[1733423213693,11.39771305,238.42,238.27,23.776884]
[1733423215496,11.39771305,238.43,238.27,23.776884]
[1733423215801,11.39771305,238.45,238.29,23.776884]
[1733423215981,11.39771305,238.46,238.31,23.776884]
[1733423216376,11.39771305,238.45,238.31,23.776884]
[1733423216595,11.39771305,238.46,238.31,23.776884]
[1733423217501,11.39771305,238.47,238.31,23.776884]
[1733423217709,11.39771305,238.48,238.32,0.62913722]
[1733423217875,11.39771305,238.49,238.34,6.647]
[1733423218075,11.39771305,238.49,238.36,2.1048]
[1733423218383,11.39771305,238.48,238.37,23.776884]
[1733423220887,11.39771305,238.49,238.37,23.776884]
[1733423221604,11.39771305,238.46,238.37,23.776884]
[1733423221895,11.39771305,238.45,238.36,2.1048]
[1733423222068,11.39771305,238.46,238.36,2.1048]
[1733423222273,11.39771305,238.47,238.36,2.1048]
[1733423222495,11.39771305,238.49,238.36,2.1048]
[1733423222699,11.39771305,238.48,238.36,2.1048]
[1733423222901,11.39771305,238.47,238.37,23.776884]
[1733423223786,11.39771305,238.46,238.37,23.776884]
[1733423223981,11.39771305,238.48,238.37,23.776884]
[1733423224197,11.39771305,238.49,238.37,23.776884]
[1733423224403,10.4814,238.52,238.37,23.776884]
[1733423224404,11.39771305,238.48,238.37,23.776884]
[1733423225107,11.39771305,238.5,238.37,23.776884]
[1733423225897,11.39771305,238.47,238.37,23.776884]
[1733423226204,11.39771305,238.49,238.37,23.776884]
[1733423227890,11.39771305,238.48,238.37,23.776884]
[1733423228306,11.39771305,238.49,238.37,23.776884]
[1733423228986,11.39771305,238.48,238.37,23.776884]
[1733423229186,11.39771305,238.49,238.37,23.776884]
[1733423229719,11.39771305,238.48,238.37,23.776884]
[1733423229903,11.39771305,238.46,238.37,23.776884]
[1733423230108,11.39771305,238.45,238.36,2.1048]
[1733423230745,11.39771305,238.44,238.36,2.1048]
[1733423230917,11.39771305,238.42,238.36,2.1048]
[1733423231416,11.39771305,238.44,238.36,2.1048]
[1733423232018,7.29175612,238.44,238.36,2.1048]
[1733423236926,7.29175612,238.42,238.36,2.1048]
[1733423237102,7.29175612,238.43,238.36,2.1048]
[1733423237989,7.29175612,238.42,238.36,2.1048]
[1733423238243,7.29175612,238.43,238.36,2.1048]
[1733423238926,7.29175612,238.42,238.36,2.1048]
[1733423239226,7.29175612,238.38,238.36,2.1048]
[1733423241325,7.29175612,238.4,238.36,2.1048]
[1733423242631,7.29175612,238.41,238.36,2.1048]
[1733423242998,7.29175612,238.4,238.36,2.1048]
[1733423243608,10.4836,238.47,238.36,2.1048]
[1733423243821,7.29175612,238.44,238.36,2.1048]
[1733423245775,7.29175612,238.41,238.36,2.1048]
[1733423247401,7.29175612,238.42,238.36,2.1048]
[1733423248112,10.4826,238.49,238.36,2.1048]
[1733423248320,7.29175612,238.45,238.36,2.1048]
[1733423248525,7.29175612,238.44,238.36,2.1048]
[1733423248823,7.29175612,238.47,238.37,23.776884]
[1733423249421,7.29175612,238.44,238.37,23.776884]
[1733423249622,7.29175612,238.45,238.36,2.1048]
[1733423250030,7.29175612,238.46,238.36,2.1048]
[1733423250215,7.29175612,238.47,238.37,23.776884]
[1733423251637,10.482,238.51,238.37,23.776884]
[1733423251817,7.29175612,238.5,238.39,23.776884]
[1733423252728,7.29175612,238.49,238.39,23.776884]
[1733423253259,31.4404,238.55,238.39,23.776884]
[1733423253536,7.29175612,238.5,238.39,23.776884]
[1733423253903,7.29175612,238.51,238.39,23.776884]
[1733423254249,7.29175612,238.52,238.39,23.776884]
[1733423254606,7.29175612,238.51,238.39,23.776884]
[1733423254813,7.29175612,238.49,238.39,23.776884]
[1733423255310,7.29175612,238.47,238.39,23.776884]
[1733423255510,7.29175612,238.49,238.39,23.776884]
[1733423255813,7.29175612,238.5,238.39,23.776884]
[1733423257534,10.4797,238.56,238.39,23.776884]
[1733423257839,7.29175612,238.53,238.41,23.776884]
[1733423258132,10.4797,238.56,238.41,23.776884]
[1733423258307,27.4973,238.65,238.39,5.2433]
[1733423258308,7.29175612,238.58,238.43,23.776884]
[1733423258508,7.29175612,238.59,238.43,23.776884]
[1733423259035,7.29175612,238.58,238.44,6.0427]
[1733423259241,10.4772,238.62,238.45,23.776884]
[1733423259415,7.29175612,238.58,238.45,23.776884]
[1733423259612,7.29175612,238.59,238.45,23.776884]
[1733423260439,7.29175612,238.58,238.45,23.776884]
[1733423261735,10.4772,238.62,238.45,23.776884]
[1733423261736,7.29175612,238.6,238.45,23.776884]
[1733423261939,7.29175612,238.59,238.45,23.776884]
[1733423264037,7.29175612,238.59,238.47,23.776884]
[1733423266341,10.4772,238.62,238.47,23.776884]
[1733423266549,7.29175612,238.6,238.47,23.776884]
[1733423266718,7.29175612,238.64,238.5,2.1612]
[1733423267045,7.29175612,238.64,238.51,23.776884]
[1733423268816,7.29175612,238.65,238.51,23.776884]
[1733423269223,7.29175612,238.62,238.51,23.776884]
[1733423270021,7.29175612,238.6,238.51,23.776884]
[1733423270552,7.29175612,238.61,238.51,23.776884]
[1733423272948,10.9456769,238.67,238.5,2.1612]
[1733423272949,7.29175612,238.57,238.5,2.1612]
[1733423273341,7.29175612,238.55,238.5,2.1612]
[1733423273834,7.29175612,238.56,238.5,2.1612]
[1733423274841,10.4774,238.61,238.5,2.1612]
[1733423275035,7.29175612,238.59,238.5,2.1612]
[1733423275235,7.29175612,238.61,238.5,2.1612]
[1733423275444,7.29175612,238.6,238.5,2.1612]
[1733423275652,7.29175612,238.59,238.5,2.1612]
[1733423277339,7.29175612,238.58,238.5,2.1612]
[1733423278038,7.29175612,238.59,238.5,2.1612]
[1733423280147,10.4759,238.65,238.51,23.776884]
[1733423280356,7.29175612,238.62,238.51,23.776884]
[1733423280527,7.29175612,238.6,238.5,2.1612]
[1733423280727,7.29175612,238.58,238.5,2.1612]
[1733423280931,7.29175612,238.61,238.51,23.776884]
[1733423281134,7.29175612,238.6,238.51,23.776884]
[1733423282055,10.4759,238.65,238.51,23.776884]
[1733423282355,7.29175612,238.6,238.51,23.776884]
[1733423284248,7.29175612,238.6,238.52,0.12549]
[1733423284448,10.4759,238.65,238.52,0.12549]
[1733423284761,7.29175612,238.59,238.51,0.12549]
[1733423285452,7.29175612,238.57,238.51,0.12549]
[1733423285636,7.29175612,238.58,238.51,0.12549]
[1733423286553,7.29175612,238.59,238.51,0.12549]
[1733423287370,7.29175612,238.6,238.51,0.12549]
[1733423287749,7.29175612,238.59,238.51,0.12549]
[1733423288865,7.29175612,238.6,238.51,0.12549]
[1733423289843,7.29175612,238.59,238.51,0.12549]
[1733423291663,10.4764,238.64,238.51,23.902374]
[1733423291835,7.29175612,238.62,238.51,23.902374]
[1733423292265,7.29175612,238.61,238.51,23.902374]
[1733423294660,7.29175612,238.6,238.51,23.902374]
[1733423295047,7.29175612,238.58,238.51,0.12549]
[1733423296763,7.29175612,238.6,238.51,0.12549]
[1733423298140,7.29175612,238.63,238.51,23.902374]
[1733423298652,7.29175612,238.63,238.53,23.902374]
[1733423299368,7.29175612,238.64,238.53,23.902374]
[1733423300642,7.29175612,238.63,238.53,23.902374]
[1733423301041,0.4708769,238.67,238.53,23.902374]
[1733423301369,7.29175612,238.64,238.53,23.902374]
[1733423304268,7.29175612,238.63,238.53,23.902374]
[1733423304568,7.29175612,238.64,238.53,23.902374]
[1733423305466,7.76263302,238.67,238.55,23.902374]
[1733423305973,7.29175612,238.66,238.55,23.902374]
[1733423306463,7.29175612,238.63,238.55,23.902374]
[1733423306836,7.29175612,238.64,238.55,23.902374]
[1733423307666,7.29175612,238.63,238.55,23.902374]
[1733423308053,7.29175612,238.64,238.55,23.902374]
[1733423308941,7.29175612,238.61,238.55,0.12549]
[1733423309148,10.9455769,238.67,238.54,2.1952]
[1733423309368,7.29175612,238.58,238.54,2.1952]
[1733423309539,7.29175612,238.6,238.54,2.1952]
[1733423310448,7.29175612,238.6,238.55,0.12549]
[1733423310852,7.29175612,238.58,238.54,2.1952]
[1733423311049,10.476,238.64,238.54,2.1952]
[1733423311050,7.29175612,238.55,238.54,2.1952]
[1733423312057,7.29175612,238.55,238.45,6.3099]
[1733423312058,7.29175612,238.55,238.48,2.1793]
[1733423312254,7.29175612,238.53,238.48,2.1793]
[1733423312656,7.29175612,238.54,238.48,2.1793]
[1733423312854,10.4781,238.6,238.48,2.1793]
[1733423313074,7.29175612,238.55,238.49,0.12549]
[1733423313744,7.29175612,238.54,238.49,0.12549]
[1733423314171,10.4781,238.6,238.49,0.12549]
[1733423314472,7.29175612,238.54,238.49,0.12549]
[1733423315450,10.4763,238.64,238.49,0.12549]
[1733423315676,7.29175612,238.57,238.49,0.12549]
[1733423315878,7.29175612,238.56,238.49,0.12549]
[1733423317681,7.29175612,238.53,238.48,2.1793]
[1733423317977,7.29175612,238.49,238.48,2.1793]
[1733423318179,7.29175612,238.5,238.48,2.1793]
[1733423318676,7.29175612,238.49,238.39,6.0294]
[1733423318973,7.29175612,238.5,238.4,0.12549]
[1733423319844,7.29175612,238.5,238.4,23.902374]
[1733423323373,10.4799,238.56,238.4,23.902374]
[1733423323571,10.4781,238.6,238.42,23.902374]
[1733423323884,7.29175612,238.55,238.42,23.902374]
[1733423324375,7.29175612,238.54,238.42,23.902374]
[1733423324571,10.4781,238.6,238.44,23.902374]
[1733423324783,7.29175612,238.56,238.46,0.12549]
[1733423324956,7.29175612,238.56,238.46,23.902374]
[1733423326182,10.4781,238.6,238.46,23.902374]
[1733423326360,7.29175612,238.57,238.46,23.902374]
[1733423327988,7.29175612,238.56,238.46,23.902374]
[1733423332459,7.29175612,238.57,238.46,23.902374]
[1733423332660,7.29175612,238.56,238.46,23.902374]
[1733423335262,7.15175612,238.56,238.46,23.902374]
[1733423335679,10.4781,238.6,238.46,23.902374]
[1733423335873,7.29175612,238.56,238.46,23.902374]
[1733423337010,7.29175612,238.58,238.46,23.902374]
[1733423337286,10.4763,238.64,238.46,23.902374]
[1733423337462,7.29175612,238.56,238.46,23.902374]
[1733423337665,7.29175612,238.54,238.46,23.902374]
[1733423338991,7.29175612,238.56,238.46,23.902374]
[1733423342287,7.29175612,238.55,238.46,23.902374]
[1733423342868,7.29175612,238.54,238.46,23.902374]
[1733423343471,10.4776,238.61,238.46,23.902374]
[1733423343675,7.29175612,238.55,238.46,23.902374]
[1733423347675,28.452,238.64,238.45,2.2399]
[1733423347880,7.29175612,238.5,238.45,2.2399]
[1733423348283,29.16702448,238.56,238.45,2.2399]
[1733423348481,7.29175612,238.46,238.45,2.2399]
[1733423348671,7.29175612,238.46,238.38,2.3122]
[1733423348995,7.29175612,238.45,238.38,2.3122]
[1733423349167,7.29175612,238.45,238.39,0.12549]
[1733423349369,7.29175612,238.45,238.38,2.3122]
[1733423350902,10.4806,238.54,238.39,0.12549]
[1733423351067,7.29175612,238.49,238.39,23.902374]
[1733423351273,7.29175612,238.48,238.39,23.902374]
[1733423351501,7.29175612,238.48,238.39,0.12549]
[1733423351682,10.4806,238.54,238.39,0.12549]
[1733423352002,7.29175612,238.48,238.39,0.12549]
[1733423352604,7.29175612,238.49,238.39,0.12549]
[1733423352986,7.29175612,238.46,238.39,0.12549]